fUST/lending_fUST_20240817
["ID","MTS","AMOUNT","RATE_DAILY","PERIOD"]
[335112793,1723849840575,-500.0,0.00064999,120]
[335112794,1723849840584,-500.0,0.00064999,120]
[335112795,1723849840593,-500.0,0.00064999,120]
[335112796,1723849840602,-506.8225506,0.00064999,120]
[335112797,1723849840612,-500.0,0.00064999,120]
[335112798,1723849840621,-506.8225506,0.00064999,120]
[335112799,1723849840631,-506.8225506,0.00064999,120]
[335112800,1723849840640,-500.0,0.00064999,120]
[335112801,1723849840649,-506.8225506,0.00064999,120]
[335112802,1723849840658,-506.8225506,0.00064999,120]
[335112803,1723849840667,-500.0,0.00064999,120]
[335112804,1723849840677,-500.0,0.00064999,120]
[335112805,1723849840686,-506.8225506,0.00064999,120]
[335112806,1723849840696,-500.0,0.00064999,120]
[335112807,1723849840706,-506.8225506,0.00064999,120]
[335112808,1723849840716,-500.0,0.00064999,120]
[335112809,1723849840725,-506.8225506,0.00064999,120]
[335112810,1723849840734,-506.8225506,0.00064999,120]
[335112811,1723849840744,-506.8225506,0.00064999,120]
[335112812,1723849840763,-500.0,0.00064999,120]
[335112813,1723849840779,-506.8225506,0.00064999,120]
[335112814,1723849840798,-506.8225506,0.00064999,120]
[335112815,1723849840818,-500.0,0.00064999,120]
[335112816,1723849840835,-279.60994429,0.00064999,120]
[335112817,1723849840852,-500.0,0.00064999,120]
[335112818,1723849840869,-506.8225506,0.00064999,120]
[335112819,1723849840885,-506.8225506,0.00064999,120]
[335112820,1723849840905,-500.0,0.00064999,120]
[335112821,1723849840927,-506.8225506,0.00064999,120]
[335112822,1723849840940,-500.0,0.00064999,120]
[335112823,1723849840954,-506.8225506,0.00064999,120]
[335112824,1723849840972,-506.8225506,0.00064999,120]
[335112825,1723849840991,-500.0,0.00064999,120]
[335112826,1723849841009,-506.8225506,0.00064999,120]
[335112827,1723849841021,-506.8225506,0.00064999,120]
[335112828,1723849841037,-506.8225506,0.00064999,120]
[335112829,1723849841052,-500.0,0.00064999,120]
[335112830,1723849841067,-506.8225506,0.00064999,120]
[335112831,1723849841081,-500.0,0.00064999,120]
[335112832,1723849841096,-506.8225506,0.00064999,120]
[335112833,1723849841110,-506.8225506,0.00064999,120]
[335112834,1723849841126,-500.0,0.00064999,120]
[335112835,1723849841142,-506.8225506,0.00064999,120]
[335112836,1723849841157,-500.0,0.00064999,120]
[335112837,1723849841171,-506.8225506,0.00064999,120]
[335112838,1723849841187,-506.8225506,0.00064999,120]
[335112839,1723849841203,-506.8225506,0.00064999,120]
[335112840,1723849841220,-506.8225506,0.00064999,120]
[335112841,1723849841235,-506.8225506,0.00064999,120]
[335112842,1723849841251,-506.8225506,0.00064999,120]
[335112843,1723849841268,-506.8225506,0.00064999,120]
[335112844,1723849841282,-506.8225506,0.00064999,120]
[335112845,1723849841296,-506.8225506,0.00064999,120]
[335112846,1723849841312,-506.8225506,0.00064999,120]
[335112847,1723849841327,-506.8225506,0.00064999,120]
[335112848,1723849841409,-506.8225506,0.00064999,120]
[335112849,1723849841423,-506.8225506,0.00064999,120]
[335112850,1723849841433,-506.8225506,0.00064999,120]
[335112851,1723849841443,-506.8225506,0.00064999,120]
[335112852,1723849841453,-506.8225506,0.00064999,120]
[335112853,1723849841463,-506.8225506,0.00064999,120]
[335112854,1723849841474,-506.8225506,0.00064999,120]
[335112855,1723849841483,-506.8225506,0.00064999,120]
[335112856,1723849841493,-506.8225506,0.00064999,120]
[335112857,1723849841503,-506.8225506,0.00064999,120]
[335112858,1723849841513,-506.8225506,0.00064999,120]
[335112859,1723849841522,-506.8225506,0.00064999,120]
[335112860,1723849841532,-506.8225506,0.00064999,120]
[335112861,1723849841543,-506.8225506,0.00064999,120]
[335112862,1723849841553,-506.8225506,0.00064999,120]
[335112863,1723849841563,-506.8225506,0.00064999,120]
[335112864,1723849841572,-506.8225506,0.00064999,120]
[335112865,1723849841582,-151.0,0.00064999,2]
[335112866,1723849841591,-151.0,0.00064999,120]
[335112867,1723849841601,-1408.056786,0.00064999,120]
[335112868,1723849841611,-1408.056786,0.00064999,120]
[335112869,1723849841620,-249.067828,0.00064999,120]
[335112870,1723849841630,-249.067828,0.00064999,120]
[335112871,1723849841640,-6053.05501504,0.00065,61]
[335112872,1723849841650,-193448.70497698,0.00065,30]
[335112873,1723849842659,-1881.17999454,0.00065,30]
[335112895,1723849846917,-524.93847751,0.00056271,120]
[335112896,1723849846927,-500.0,0.00056271,120]
[335112897,1723849846937,-524.93847751,0.00056271,120]
[335112898,1723849846950,-524.93847751,0.00056271,120]
[335112899,1723849846961,-524.93847751,0.00056271,120]
[335112900,1723849846971,-69.21183561,0.00056271,120]
[335112901,1723849846984,-455.7266419,0.00056271,120]
[335112902,1723849846994,-500.0,0.00056271,120]
[335112903,1723849847003,-200.0,0.00056271,120]
[335112904,1723849847014,-524.93847751,0.00056271,120]
[335112905,1723849847034,-57.10423026,0.00056271,120]
[335112906,1723849847064,-467.83424725,0.00056271,120]
[335112907,1723849847074,-524.93847751,0.00056271,120]
[335112908,1723849847084,-524.93847751,0.00056271,120]
[335112909,1723849847094,-524.93847751,0.00056271,120]
[335112910,1723849847104,-524.93847751,0.00056271,120]
[335112911,1723849847114,-300.0,0.00064999,120]
[335112912,1723849847125,-518.20849703,0.00064999,120]
[335112913,1723849847137,-518.20849703,0.00064999,120]
[335112914,1723849847148,-518.20849703,0.00064999,120]
[335112915,1723849847158,-518.20849703,0.00064999,120]
[335112916,1723849847168,-500.0,0.00064999,120]
[335112917,1723849847178,-518.20849703,0.00064999,120]
[335112918,1723849847187,-518.20849703,0.00064999,120]
[335112919,1723849847197,-500.0,0.00064999,120]
[335112920,1723849847207,-518.20849703,0.00064999,120]
[335112921,1723849847218,-500.0,0.00064999,120]
[335112922,1723849847229,-518.20849703,0.00064999,120]
[335112923,1723849847239,-500.0,0.00064999,120]
[335112924,1723849847249,-518.20849703,0.00064999,120]
[335112925,1723849847259,-518.20849703,0.00064999,120]
[335112926,1723849847269,-518.20849703,0.00064999,120]
[335112927,1723849847279,-500.0,0.00064999,120]
[335112928,1723849847290,-518.20849703,0.00064999,120]
[335112929,1723849847300,-518.20849703,0.00064999,120]
[335112930,1723849847311,-518.20849703,0.00064999,120]
[335112931,1723849847321,-518.20849703,0.00064999,120]
[335112932,1723849847331,-518.20849703,0.00064999,120]
[335112933,1723849847341,-518.20849703,0.00064999,120]
[335112934,1723849847351,-518.20849703,0.00064999,120]
[335112935,1723849847362,-518.20849703,0.00064999,120]
[335112936,1723849847372,-518.20849703,0.00064999,120]
[335112937,1723849847382,-518.20849703,0.00064999,120]
[335112938,1723849847397,-518.20849703,0.00064999,120]
[335112939,1723849847408,-518.20849703,0.00064999,120]
[335112940,1723849847421,-518.20849703,0.00064999,120]
[335112941,1723849847432,-45916.24153694,0.00065,30]
[335112942,1723849905100,688.33798731,0.00014519,2]
[335112943,1723849906887,342.47979758,0.00014519,2]
[335112944,1723849911777,154.93027976,0.00014519,2]
[335112945,1723849912694,231.20582703,0.00014519,2]
[335112946,1723849919781,665.1114012,0.00014519,2]
[335112947,1723849922002,3884.01709153,0.00013971,2]
[335112948,1723849922035,10899.95519417,0.00013971,2]
[335112949,1723849922067,25000.0,0.00013971,2]
[335112950,1723849922101,15393.33062148,0.00013971,2]
[335112951,1723849925325,278.39188772,0.00014519,2]
[335112952,1723849927559,154.79103211,0.00014519,2]
[335112953,1723849928329,223.40672649,0.00014519,2]
[335112954,1723849929019,180.69959783,0.00014519,2]
[335112955,1723849929222,154.79103211,0.00014519,2]
[335112956,1723849930528,154.60575532,0.00014519,2]
[335112957,1723849930802,494.87154082,0.00014519,2]
[335112958,1723849931424,1500.0,0.00014519,2]
[335112959,1723849932414,6465.11180612,0.00013971,2]
[335112960,1723849932445,11521.03357021,0.00013971,2]
[335112961,1723849932476,154.79103211,0.00014519,2]
[335112962,1723849934577,154.79103211,0.00014519,2]
[335112963,1723849935770,405.46381726,0.00014519,2]
[335112964,1723849937237,200.0,0.00014519,2]
[335112965,1723849938214,2165.20291982,0.00014519,2]
[335112966,1723849939126,225.49117266,0.00014519,2]
[335112967,1723849943192,2141.83182523,0.00014519,2]
[335112968,1723849943720,154.84498844,0.00014519,2]
[335112969,1723849944340,154.95408924,0.00014519,2]
[335112970,1723849944882,543.73594479,0.00014519,2]
[335112971,1723849945143,160.80188187,0.00014519,2]
[335112972,1723849948641,195.5269004,0.00014519,2]
[335112973,1723849950264,601.5809545,0.00014519,2]
[335112974,1723849956593,728.43490027,0.00017598,2]
[335112975,1723849956973,534.58678596,0.00014519,2]
[335112976,1723849969902,3791.00776383,0.00014519,2]
[335112977,1723849970227,382.81455407,0.00014519,2]
[335112978,1723849971425,230.59124262,0.00017598,2]
[335112979,1723849973635,552.51462461,0.00014519,2]
[335112980,1723849973661,1118.40764083,0.00014519,2]
[335112981,1723849975933,154.79103211,0.00014519,2]
[335112982,1723849984971,154.66746495,0.00017598,2]
[335112983,1723849986636,245.30609513,0.00017598,2]
[335112984,1723849987039,155.39930627,0.00017598,2]
[335112985,1723850018392,194.35894473,0.00017598,2]
[335112987,1723850052527,151.0,0.0003,120]
[335112991,1723850216962,-3000.0,0.000312,7]
[335112992,1723850216993,-3000.0,0.0003121,7]
[335112993,1723850217025,-400.0,0.00031218,2]
[335112994,1723850217055,-400.0,0.00031219,2]
[335112995,1723850217084,-3289.363582,0.0003122,7]
[335112999,1723850593923,150.0,0.000312,7]
[335113000,1723850596099,250.0,0.00033,2]
[335113002,1723850731156,-273.31352329,0.00037185,2]
[335113004,1723850826092,-3366.76150197,0.00037,2]
[335113005,1723850826115,-287.01704793,0.00037184,2]
[335113006,1723850842137,-112.98295207,0.00037184,2]
[335113007,1723850842164,-400.0,0.00037184,2]
[335113008,1723850842190,-1706.77008781,0.00037185,2]
[335113009,1723850842214,-2421.93973491,0.00037185,2]
[335113011,1723850845098,-419.405656,0.00037185,2]
[335113015,1723850952143,-995.25538244,0.00035,120]
[335113016,1723850952165,-400.0,0.00036997,2]
[335113017,1723850952188,-400.0,0.00036997,2]
[335113018,1723850952212,-450.17014029,0.00036998,2]
[335113019,1723850957104,-24449.82985971,0.00036998,2]
[335113020,1723850957127,-6340.43097281,0.00037185,2]
[335113021,1723850957150,-465.4017646,0.00037185,4]
[335113022,1723850957172,-2175.33677276,0.0003726,2]
[335113023,1723850957197,-1025.477813,0.0003736,2]
[335113024,1723850957220,-250.0,0.00037676,2]
[335113025,1723850957242,-2469.2413539,0.00037695,2]
[335113026,1723850957266,-250.0,0.00037779,2]
[335113027,1723850957289,-250.0,0.00037882,2]
[335113028,1723850957312,-250.0,0.00037986,2]
[335113029,1723850957334,-250.0,0.00038089,2]
[335113030,1723850957357,-250.0,0.00038192,2]
[335113031,1723850957379,-250.0,0.00038296,2]
[335113032,1723850957402,-250.0,0.00038399,2]
[335113033,1723850957426,-250.0,0.00038502,2]
[335113034,1723850957450,-250.0,0.00038606,2]
[335113035,1723850957474,-250.0,0.00038709,2]
[335113036,1723850957497,-250.0,0.00038812,2]
[335113037,1723850957522,-250.0,0.00038916,2]
[335113038,1723850957545,-250.0,0.00039019,2]
[335113039,1723850957569,-250.0,0.00039123,2]
[335113040,1723850957593,-250.0,0.00039226,2]
[335113041,1723850957617,-250.0,0.00039329,2]
[335113042,1723850957641,-500.0,0.00039432,7]
[335113043,1723850957664,-500.0,0.00039432,7]
[335113044,1723850957690,-500.0,0.00039432,7]
[335113045,1723850957715,-500.0,0.00039432,7]
[335113046,1723850957743,-500.0,0.00039432,7]
[335113047,1723850957767,-443.39413643,0.00039432,7]
[335113048,1723850957790,-500.0,0.00039432,7]
[335113049,1723850957816,-500.0,0.00039432,7]
[335113050,1723850957841,-500.0,0.00039432,7]
[335113051,1723850957865,-500.0,0.00039432,7]
[335113052,1723850957889,-433.2860659,0.00039432,7]
[335113053,1723850958140,-66.7139341,0.00039432,7]
[335113054,1723850958165,-500.0,0.00039432,7]
[335113055,1723850958194,-500.0,0.00039432,7]
[335113056,1723850958220,-129.67883009,0.00039432,7]
[335113057,1723850963126,-370.32116991,0.00039432,7]
[335113058,1723850963150,-500.0,0.00039432,7]
[335113059,1723850963175,-500.0,0.00039432,7]
[335113060,1723850963201,-500.0,0.00039432,7]
[335113061,1723850963223,-500.0,0.00039432,7]
[335113062,1723850963250,-500.0,0.00039432,7]
[335113063,1723850963275,-500.0,0.00039432,7]
[335113064,1723850963297,-500.0,0.00039432,7]
[335113065,1723850963322,-500.0,0.00039432,7]
[335113066,1723850963345,-500.0,0.00039432,7]
[335113067,1723850963371,-446.22044834,0.00039432,7]
[335113068,1723850963395,-500.0,0.00039432,7]
[335113069,1723850963418,-500.0,0.00039432,7]
[335113070,1723850963441,-500.0,0.00039432,7]
[335113071,1723850963465,-500.0,0.00039432,7]
[335113072,1723850963488,-500.0,0.00039432,7]
[335113073,1723850963511,-500.0,0.00039432,7]
[335113074,1723850963534,-500.0,0.00039432,7]
[335113075,1723850963560,-500.0,0.00039432,7]
[335113076,1723850963583,-250.0,0.00039433,2]
[335113077,1723850963606,-250.0,0.00039536,2]
[335113078,1723850963628,-190.0,0.00039587,5]
[335113079,1723850963650,-250.0,0.00039639,2]
[335113080,1723850963672,-2175.33677275,0.00041211,28]
[335113081,1723850963693,-9714.725685,0.00042251,2]
[335113082,1723850963714,-4446.87849984,0.000439,30]
[335113083,1723850963736,-167.010473,0.00043913,2]
[335113084,1723850963759,-1199.4713184,0.00043915,2]
[335113085,1723850963785,-167.010473,0.00043932,2]
[335113086,1723850963811,-167.010473,0.0004395,2]
[335113087,1723850963835,-167.010473,0.00043968,2]
[335113088,1723850963859,-167.010473,0.00043986,2]
[335113089,1723850963883,-167.010473,0.00044005,2]
[335113090,1723850963907,-167.010473,0.00044023,2]
[335113091,1723850963932,-167.010473,0.00044041,2]
[335113092,1723850963955,-167.010473,0.0004406,2]
[335113093,1723850963979,-167.010473,0.00044078,2]
[335113094,1723850964001,-167.010473,0.00044096,2]
[335113095,1723850964024,-167.010473,0.00044115,2]
[335113096,1723850964046,-167.010473,0.00044133,2]
[335113097,1723850964069,-508.25725451,0.00045072,4]
[335113098,1723850964091,-1923.8714066,0.00045161,28]
[335113099,1723850966138,-251.46536615,0.00045161,28]
[335113100,1723850966162,-500.0,0.00046017,30]
[335113101,1723850966184,-253.48110571,0.00047703,2]
[335113102,1723850966212,-2175.33677275,0.00049112,28]
[335113103,1723850966235,-1005.58203837,0.00049215,2]
[335113104,1723850966258,-500.0,0.00049314,120]
[335113105,1723850966284,-500.0,0.00049315,120]
[335113106,1723850966310,-500.0,0.00049315,120]
[335113107,1723850966335,-500.0,0.00049315,120]
[335113108,1723850966360,-500.0,0.00049315,120]
[335113109,1723850966383,-500.0,0.00049315,120]
[335113110,1723850966405,-500.0,0.00049315,120]
[335113111,1723850966435,-500.0,0.00049315,120]
[335113112,1723850966461,-500.0,0.00049315,120]
[335113113,1723850966486,-500.0,0.00049315,120]
[335113114,1723850966510,-500.0,0.00049315,120]
[335113115,1723850966536,-500.0,0.00049315,120]
[335113116,1723850966563,-500.0,0.00049315,120]
[335113117,1723850966590,-500.0,0.00049315,120]
[335113118,1723850966616,-500.0,0.00049315,120]
[335113119,1723850966643,-500.0,0.00049315,120]
[335113120,1723850966671,-500.0,0.00049315,120]
[335113121,1723850966698,-500.0,0.00049315,120]
[335113122,1723850966725,-500.0,0.00049315,120]
[335113123,1723850966751,-500.0,0.00049315,120]
[335113124,1723850966774,-500.0,0.00049315,120]
[335113125,1723850966798,-650.0,0.00049315,120]
[335113126,1723850966822,-500.0,0.00049315,120]
[335113127,1723850966846,-500.0,0.00049315,120]
[335113128,1723850966871,-500.0,0.00049315,120]
[335113129,1723850966896,-500.0,0.00049315,120]
[335113130,1723850966920,-500.0,0.00049315,120]
[335113131,1723850966944,-500.0,0.00049315,120]
[335113132,1723850966968,-500.0,0.00049315,120]
[335113133,1723850966992,-500.0,0.00049315,120]
[335113134,1723850967017,-500.0,0.00049315,120]
[335113135,1723850967041,-500.0,0.00049315,120]
[335113136,1723850967066,-500.0,0.00049315,120]
[335113137,1723850967092,-500.0,0.00049315,120]
[335113138,1723850967119,-378.52724063,0.00049315,120]
[335113139,1723850967143,-500.0,0.00049315,120]
[335113140,1723850967166,-500.0,0.00049315,120]
[335113141,1723850967192,-500.0,0.00049315,120]
[335113142,1723850967217,-500.0,0.00049315,120]
[335113143,1723850967241,-500.0,0.00049315,120]
[335113144,1723850967265,-500.0,0.00049315,120]
[335113145,1723850967289,-500.0,0.00049315,120]
[335113146,1723850967312,-500.0,0.00049315,120]
[335113147,1723850967334,-500.0,0.00049315,120]
[335113148,1723850967356,-2000.0,0.00049806,120]
[335113149,1723850967378,-151.0,0.0005,120]
[335113150,1723850967401,-500.0,0.00050611,60]
[335113151,1723850967424,-3000.0,0.00051,85]
[335113152,1723850967448,-3000.0,0.0005101,85]
[335113153,1723850967565,-3000.0,0.0005102,85]
[335113154,1723850967592,-3000.0,0.0005103,85]
[335113155,1723850967620,-16192.03136786,0.0005103,6]
[335113156,1723850968139,-1896.3426945,0.0005103,6]
[335113157,1723850968169,-3823.60819164,0.0005103,6]
[335113158,1723850968195,-3000.0,0.0005104,85]
[335113159,1723850968219,-3000.0,0.0005105,85]
[335113160,1723850968244,-3000.0,0.0005106,85]
[335113161,1723850968266,-212.3981625,0.00051069,31]
[335113162,1723850968292,-500.0,0.00051069,120]
[335113163,1723850968326,-500.0,0.00051069,120]
[335113164,1723850968349,-500.0,0.00051069,120]
[335113165,1723850968374,-500.0,0.00051069,120]
[335113166,1723850968400,-500.0,0.00051069,120]
[335113167,1723850968426,-500.0,0.00051069,120]
[335113168,1723850968452,-500.0,0.00051069,120]
[335113169,1723850968495,-500.0,0.00051069,120]
[335113170,1723850968527,-424.72138927,0.00051069,120]
[335113171,1723850968555,-3000.0,0.0005107,85]
[335113172,1723850968584,-5068.491525,0.0005108,85]
[335113173,1723850968611,-1005.58203837,0.00051949,2]
[335113174,1723850968637,-2000.0,0.00052206,120]
[335113175,1723850968663,-1005.58203837,0.00054684,2]
[335113176,1723850968690,-2000.0,0.00054721,120]
[335113177,1723850968715,-500.0,0.00054795,120]
[335113178,1723850968740,-500.0,0.00054795,120]
[335113179,1723850968765,-500.0,0.00054795,120]
[335113180,1723850968789,-500.0,0.00054795,120]
[335113181,1723850968817,-500.0,0.00054795,120]
[335113182,1723850968842,-500.0,0.00054795,120]
[335113183,1723850968866,-500.0,0.00054795,120]
[335113184,1723850968889,-500.0,0.00054795,120]
[335113185,1723850968913,-500.0,0.00054795,120]
[335113186,1723850968937,-389.87130451,0.00054795,120]
[335113187,1723850968960,-500.0,0.00054795,120]
[335113188,1723850968984,-500.0,0.00054795,120]
[335113189,1723850969008,-500.0,0.00054795,120]
[335113190,1723850969032,-500.0,0.00054795,120]
[335113191,1723850969054,-500.0,0.00054795,120]
[335113192,1723850969076,-500.0,0.00054795,120]
[335113193,1723850969098,-500.0,0.00054795,120]
[335113194,1723850969123,-500.0,0.00054795,120]
[335113195,1723850969147,-350.0,0.00054795,120]
[335113196,1723850969175,-200.0,0.00055067,15]
[335113197,1723850969200,-3005.94572747,0.00055985,120]
[335113198,1723850969222,-1025.477813,0.0005604,30]
[335113199,1723850969246,-150.112234,0.000561,11]
[335113200,1723850969270,-500.0,0.00056164,120]
[335113201,1723850969292,-500.0,0.00056164,120]
[335113202,1723850969315,-500.0,0.00056164,120]
[335113203,1723850969336,-506.952249,0.00056164,120]
[335113204,1723850969358,-150.112233,0.000562,16]
[335113205,1723850969380,-400.0,0.00056437,15]
[335113206,1723850969404,-150.112233,0.000569,14]
[335113207,1723850969428,-150.112233,0.000571,13]
[335113208,1723850969451,-1005.58203837,0.00057418,2]
[335113209,1723850969474,-2000.0,0.00057511,120]
[335113210,1723850969497,-150.112233,0.000577,11]
[335113211,1723850969519,-150.112233,0.000579,16]
[335113212,1723850969540,-600.0,0.0005844,15]
[335113213,1723850969568,-150.112233,0.000585,13]
[335113214,1723850969593,-150.112236,0.000586,16]
[335113215,1723850969619,-150.112233,0.000588,12]
[335113216,1723850969642,-150.112233,0.00059,16]
[335113217,1723850969663,-150.112233,0.000593,15]
[335113218,1723850969688,-150.112233,0.000594,10]
[335113219,1723850969808,-2000.0,0.00059636,120]
[335113220,1723850969835,-150.112233,0.000597,11]
[335113221,1723850969860,-150.112233,0.000599,14]
[335113222,1723850969885,-150.0,0.0006,120]
[335113223,1723850969911,-21911.982254,0.0006009,7]
[335113224,1723850969933,-150.112233,0.000601,15]
[335113225,1723850969956,-883.59256062,0.00060152,2]
[335113226,1723850969978,-1005.58203837,0.00060152,2]
[335113227,1723850970001,-53397.99514862,0.0006025,120]
[335113274,1723851031875,-499.0,0.00047824,10]
[335113275,1723851031885,-1589.76831841,0.0005207,120]
[335113277,1723851031926,-143.85720813,0.0005207,120]
[335113287,1723851037978,-266.37447346,0.0005207,120]
[335113288,1723851037988,-1938.63892331,0.00053062,28]
[335113300,1723851038280,-30.36816925,0.00053062,28]
[335113301,1723851038295,-206.32968019,0.00053062,28]
[335113302,1723851038306,-2000.0,0.00054794,120]
[335113303,1723851038318,-2175.33677275,0.00057013,28]
[335113304,1723851038327,-1348.33354706,0.00057279,120]
[335113310,1723851038408,-651.66645294,0.00057279,120]
[335113311,1723851038418,-2000.0,0.00058603,120]
[335113312,1723851038430,-2000.0,0.00059716,120]
[335113313,1723851038440,-500.0,0.00060247,120]
[335113314,1723851038451,-500.0,0.00060247,120]
[335113315,1723851038461,-500.0,0.00060247,120]
[335113316,1723851038470,-500.0,0.00060247,120]
[335113317,1723851038480,-500.0,0.00060247,120]
[335113318,1723851038489,-500.0,0.00060247,120]
[335113319,1723851038499,-254.98821412,0.00060247,120]
[335113320,1723851038509,-500.0,0.00060247,120]
[335113321,1723851038519,-500.0,0.00060247,120]
[335113322,1723851038530,-500.0,0.00060247,120]
[335113323,1723851038543,-500.0,0.00060247,7]
[335113324,1723851038554,-500.0,0.00060247,120]
[335113325,1723851038564,-500.0,0.00060247,120]
[335113326,1723851038573,-500.0,0.00060247,7]
[335113327,1723851038582,-500.0,0.00060247,120]
[335113328,1723851038591,-638.96145848,0.00060247,7]
[335113329,1723851038601,-500.0,0.00060247,120]
[335113330,1723851038611,-500.0,0.00060247,120]
[335113331,1723851038621,-617.90991315,0.00060247,120]
[335113332,1723851038630,-302.85272406,0.00060247,120]
[335113333,1723851038640,-500.0,0.00060247,120]
[335113334,1723851038650,-500.0,0.00060247,120]
[335113335,1723851038659,-500.0,0.00060247,120]
[335113336,1723851038669,-500.0,0.00060247,120]
[335113337,1723851038679,-500.0,0.00060247,120]
[335113338,1723851038688,-45562.87483925,0.00060248,120]
[335113339,1723851038700,-10770.37467091,0.00060248,120]
[335113340,1723851038711,-4539.51214634,0.00060248,120]
[335113341,1723851039981,-583619.44755047,0.00060248,120]
[335113342,1723851039995,-41445.74094956,0.00060248,120]
[335113353,1723851042960,-16632.99260276,0.00060248,61]
[335113357,1723851044945,-510.55590889,0.00060248,61]
[335113364,1723851114263,158.01490399,0.00014519,2]
[335113365,1723851115468,520.17456935,0.00014519,2]
[335113366,1723851116846,154.80649189,0.00014519,2]
[335113367,1723851117045,601.5809545,0.00014519,2]
[335113368,1723851117452,23565.42308027,0.00013971,2]
[335113369,1723851117483,16612.95492323,0.00013971,2]
[335113370,1723851120699,688.33798731,0.00014519,2]
[335113371,1723851121562,154.80649189,0.00014519,2]
[335113372,1723851121592,155.63985227,0.00014519,2]
[335113373,1723851121960,342.47979758,0.00014519,2]
[335113374,1723851126656,161.27368463,0.00014519,2]
[335113375,1723851138523,154.81170929,0.00014519,2]
[335113376,1723851140851,500.0,0.00014519,2]
[335113377,1723851140989,154.60575532,0.00014519,2]
[335113378,1723851168096,180.53401892,0.00014519,2]
[335113379,1723851171813,241.52020036,0.00017598,2]
[335113380,1723851180180,1000.29471344,0.00014519,2]
[335113381,1723851181364,1634.70806902,0.00014519,2]
[335113382,1723851186198,728.43490027,0.00014519,2]
[335113383,1723851191474,154.92994191,0.00017598,2]
[335113384,1723851237952,270.63725343,0.00017598,2]
[335113385,1723851259292,151.0,0.0003,120]
[335113399,1723851607498,466.90253729,0.00031963,2]
[335113400,1723851608585,465.09512686,0.00033561,2]
[335113401,1723851665318,1955.64923248,0.00014519,2]
[335113402,1723851676230,4652.9469304,0.0003,2]
[335113403,1723851806779,200.0,0.00035,2]
[335113404,1723851873010,3790.35786232,0.0003,4]
[335113406,1723851877418,4718.29455301,0.00035,2]
[335113407,1723851898470,875.18086042,0.00035,2]
[335113409,1723851925487,400.0,0.00035,2]
[335113410,1723851935277,245.26284124,0.00035,4]
[335113411,1723851937167,-273.81562103,0.00035239,2]
[335113412,1723851940798,400.0,0.00035,2]
[335113413,1723851965366,2841.63012526,0.00035,2]
[335113414,1723851986178,275.50744107,0.00035,4]
[335113415,1723851991630,2143.11477909,0.00035,4]
[335113416,1723851998710,1570.05771056,0.00014519,2]
[335113417,1723851998737,61.9936372,0.00014519,2]
[335113419,1723852026108,-704.61369347,0.00035,2]
[335113420,1723852037107,-74.32834068,0.00035,2]
[335113421,1723852037131,-191.18913531,0.00035239,2]
[335113422,1723852037161,-400.0,0.00036892,2]
[335113423,1723852037186,-300.0,0.00036892,2]
[335113424,1723852037209,-5057.5878002,0.00036893,2]
[335113425,1723852041092,-1834.22406797,0.00036893,2]
[335113426,1723852045098,400.0,0.00034,2]
[335113427,1723852048278,245.26284124,0.00014519,2]
[335113428,1723852051142,-18008.18813183,0.00036893,2]
[335113429,1723852051165,-3000.0,0.00037714,2]
[335113430,1723852051191,-250.0,0.00038055,2]
[335113431,1723852051218,-250.0,0.00038159,2]
[335113432,1723852051240,-250.0,0.00038264,2]
[335113433,1723852051264,-250.0,0.00038368,2]